fUSD/lending_fUSD_20240204
["ID","MTS","AMOUNT","RATE_DAILY","PERIOD"]
[313284656,1707082243031,-948.08,0.00026345,2]
[313284657,1707082243041,-651.84,0.00026365,2]
[313284658,1707082243050,-18848.93000566,0.000264,2]
[313284659,1707082243059,-625.23,0.00026455,2]
[313284660,1707082243068,-1094.15,0.00026474,2]
[313284661,1707082243076,-156.31,0.00026474,2]
[313284662,1707082243090,-156.31,0.00026474,2]
[313284663,1707082243099,-948.08,0.00026474,2]
[313284664,1707082243109,-587.0,0.00026549,2]
[313284665,1707082243118,-582.19,0.00026582,2]
[313284666,1707082243127,-625.23,0.00026585,2]
[313284667,1707082243136,-1094.15,0.00026604,2]
[313284668,1707082243146,-156.31,0.00026604,2]
[313284669,1707082243155,-156.31,0.00026604,2]
[313284670,1707082243166,-948.08,0.00026604,2]
[313284671,1707082243176,-1628.7,0.0002664,2]
[313284672,1707082243185,-153.6583925,0.0002664,2]
[313284673,1707082243194,-625.23,0.00026716,2]
[313284674,1707082243204,-1094.15,0.00026734,2]
[313284675,1707082243213,-156.31,0.00026734,2]
[313284676,1707082243222,-156.31,0.00026734,2]
[313284677,1707082243232,-948.08,0.00026734,2]
[313284678,1707082243241,-3162.35348726,0.00026736,2]
[313284679,1707082243250,-180.32653704,0.00026781,2]
[313284680,1707082243259,-625.23,0.00026846,2]
[313284681,1707082243268,-1094.15,0.00026864,2]
[313284682,1707082243277,-156.31,0.00026864,2]
[313284683,1707082243287,-156.31,0.00026864,2]
[313284684,1707082243296,-948.08,0.00026864,2]
[313284685,1707082243306,-625.23,0.00026976,2]
[313284686,1707082243316,-1094.15,0.00026994,2]
[313284687,1707082243325,-156.31,0.00026994,2]
[313284688,1707082243334,-156.31,0.00026994,2]
[313284689,1707082243343,-948.08,0.00026994,2]
[313284690,1707082243353,-541.28122264,0.00027,2]
[313284691,1707082243362,-600.0,0.00027,3]
[313284692,1707082243371,-625.23,0.00027107,2]
[313284693,1707082243380,-153.6583925,0.00027111,2]
[313284694,1707082243390,-1094.15,0.00027123,2]
[313284695,1707082243399,-156.31,0.00027123,2]
[313284696,1707082243409,-156.31,0.00027123,2]
[313284697,1707082243418,-948.08,0.00027123,2]
[313284698,1707082243427,-518.38,0.00027142,2]
[313284699,1707082243437,-602.02,0.0002717,2]
[313284700,1707082243446,-651.84,0.00027208,2]
[313284701,1707082243455,-625.23,0.00027237,2]
[313284702,1707082243465,-155.0,0.00027397,2]
[313284703,1707082243474,-150.0,0.00027397,2]
[313284704,1707082243483,-3000.0,0.00027397,2]
[313284705,1707082243492,-3000.0,0.00027397,2]
[313284706,1707082243501,-3000.0,0.00027397,2]
[313284707,1707082243510,-3000.0,0.00027397,2]
[313284708,1707082243519,-3000.0,0.00027397,2]
[313284709,1707082243528,-3000.0,0.00027397,2]
[313284710,1707082243537,-3000.0,0.00027397,2]
[313284711,1707082243545,-3000.0,0.00027397,2]
[313284712,1707082243555,-3000.0,0.00027397,2]
[313284713,1707082243564,-3000.0,0.00027397,2]
[313284714,1707082243573,-3000.0,0.00027397,2]
[313284715,1707082243582,-3000.0,0.00027397,2]
[313284716,1707082243591,-3000.0,0.00027397,2]
[313284717,1707082243599,-3000.0,0.00027397,2]
[313284718,1707082243608,-4842.90253915,0.00027397,2]
[313284719,1707082243617,-3544.74,0.00027397,2]
[313284720,1707082243626,-1237.23,0.00027397,2]
[313284721,1707082243636,-186.29639407,0.000275,2]
[313284722,1707082243645,-1237.23,0.00027556,2]
[313284723,1707082243654,-153.6583925,0.00027581,2]
[313284724,1707082243663,-1237.23,0.00027714,2]
[313284725,1707082243672,-1237.23,0.00027872,2]
[313284726,1707082243681,-21236.20511412,0.00028,2]
[313284727,1707082243690,-1237.23,0.0002803,2]
[313284728,1707082243699,-651.84,0.00028051,2]
[313284729,1707082243708,-153.6583925,0.00028051,2]
[313284730,1707082243717,-204.0,0.00028116,2]
[313284731,1707082243727,-500.0,0.00028146,2]
[313284732,1707082243736,-1237.23,0.00028189,2]
[313284733,1707082243745,-151.09684366,0.00028209,2]
[313284734,1707082243754,-153.60381201,0.00028245,2]
[313284735,1707082243763,-1628.7,0.00028284,2]
[313284736,1707082243773,-152.4549424,0.00028304,2]
[313284737,1707082243782,-1237.23,0.00028347,2]
[313284738,1707082243791,-1237.23,0.00028505,2]
[313284739,1707082243800,-156.08841774,0.00028515,2]
[313284740,1707082243808,-153.6583925,0.00028522,2]
[313284741,1707082243817,-1237.23,0.00028664,2]
[313284742,1707082243826,-3162.35348726,0.00028705,2]
[313284743,1707082243835,-801.57598095,0.00028717,4]
[313284744,1707082243844,-1237.23,0.00028822,2]
[313284745,1707082243852,-582.19,0.00028846,2]
[313284746,1707082243862,-651.84,0.00028894,2]
[313284747,1707082243871,-153.6583925,0.00028992,2]
[313284748,1707082243880,-650.0,0.00029,3]
[313284749,1707082243889,-152.4549424,0.00029304,2]
[313284750,1707082243899,-7999.99,0.00029445,6]
[313284751,1707082243908,-204.0,0.00029445,4]
[313284752,1707082243917,-153.6583925,0.00029463,2]
[313284753,1707082243926,-155.0,0.000295,3]
[313284754,1707082243935,-3196.0,0.000295,3]
[313284755,1707082243944,-18868.1867156,0.000295,3]
[313284756,1707082244108,-12108.8132844,0.000295,3]
[313284757,1707082244118,-152.4549424,0.00029851,2]
[313284758,1707082244127,-518.38,0.00029856,2]
[313284759,1707082244137,-474.09820608,0.00029879,2]
[313284760,1707082244147,-204.7712179,0.00029879,2]
[313284761,1707082244159,-602.02,0.00029887,2]
[313284762,1707082244169,-1628.7,0.00029928,2]
[313284763,1707082244179,-153.6583925,0.00029933,2]
[313284764,1707082244188,-152.4549424,0.00029974,2]
[313284765,1707082244197,-5000.0,0.0003,3]
[313284766,1707082244206,-155.0,0.0003,2]
[313284767,1707082244215,-150.0,0.0003,2]
[313284768,1707082244225,-500.0,0.0003,2]
[313284769,1707082244235,-500.0,0.0003,2]
[313284770,1707082244244,-500.0,0.0003,2]
[313284771,1707082244252,-500.0,0.0003,2]
[313284772,1707082244261,-500.0,0.0003,2]
[313284773,1707082244271,-500.0,0.0003,2]
[313284774,1707082244280,-500.0,0.0003,2]
[313284775,1707082244289,-739.15735351,0.0003,2]
[313284776,1707082244299,-18903.56437317,0.00030034,7]
[313284777,1707082244439,-181096.43562683,0.00030034,7]
[313284778,1707082244448,-6387.07292115,0.000301,2]
[313284779,1707082244457,-536.04370569,0.000302,2]
[313284780,1707082244467,-984.90884217,0.000302,2]
[313284781,1707082244476,-263.01931318,0.000302,2]
[313284782,1707082244485,-239.57874547,0.000303,2]
[313284783,1707082244494,-307.57,0.00030399,2]
[313284784,1707082244503,-152.4549424,0.000304,7]
[313284785,1707082244512,-153.6583925,0.00030403,2]
[313284786,1707082244521,-3162.35348726,0.00030673,2]
[313284787,1707082244530,-160.99975112,0.00030708,7]
[313284788,1707082244540,-204.0,0.00030773,6]
[313284789,1707082244549,-500.0,0.0003081,2]
[313284790,1707082244558,-153.6583925,0.00030874,2]
[313284791,1707082244567,-152.4549424,0.00030994,7]
[313284792,1707082244576,-156.80178581,0.00030996,7]
[313284793,1707082244585,-700.0,0.00031,3]
[313284794,1707082244594,-582.19,0.0003111,2]
[313284795,1707082244602,-13099.90064964,0.00031169,7]
[313284796,1707082244612,-31718.49566377,0.00031169,7]
[313284797,1707082244621,-14946.85766263,0.00031241,7]
[313284798,1707082244630,-153.6583925,0.00031344,2]
[313284799,1707082244639,-6001.63645863,0.00031388,7]
[313284800,1707082244649,-16328.53784274,0.00031388,7]
[313284801,1707082244658,-18791.54679466,0.0003139,5]
[313284802,1707082244667,-180.0,0.00031644,2]
[313284803,1707082244676,-56862.236993,0.000318,3]
[313284804,1707082244684,-801.57598095,0.00031864,5]
[313284805,1707082244694,-204.0,0.00032102,9]
[313284806,1707082244703,-312.17671248,0.000325,2]
[313284807,1707082244712,-151.09684366,0.00032553,2]
[313284808,1707082244721,-518.38,0.0003257,2]
[313284809,1707082244730,-152.4549424,0.00032579,7]
[313284810,1707082244739,-602.02,0.00032604,2]
[313284811,1707082244748,-3162.35348726,0.00032641,4]
[313284812,1707082244758,-634.65423042,0.0003278,5]
[313284813,1707082244769,-16675.00343608,0.0003278,5]
[313284814,1707082244779,-152.19271474,0.00032852,7]
[313284815,1707082244788,-309.82122127,0.00033,4]
[313284816,1707082244797,-1405.08867189,0.00033,2]
[313284817,1707082244805,-750.0,0.00033,3]
[313284818,1707082244814,-582.19,0.00033374,2]
[313284819,1707082244823,-204.0,0.0003343,11]
[313284820,1707082244832,-500.0,0.00033475,2]
[313284821,1707082244842,-1396.0,0.000335,7]
[313284822,1707082244851,-152.65,0.000335,2]
[313284823,1707082244860,-152.65,0.000335,2]
[313284824,1707082244869,-152.65,0.000335,2]
[313284825,1707082244878,-152.65,0.000335,2]
[313284826,1707082244887,-152.65,0.000335,2]
[313284827,1707082244895,-152.65,0.000335,2]
[313284828,1707082244904,-152.65,0.000335,2]
[313284829,1707082244914,-152.65,0.000335,2]
[313284830,1707082244923,-152.65,0.000335,2]
[313284831,1707082244932,-152.65,0.000335,2]
[313284832,1707082244941,-152.65,0.000335,2]
[313284833,1707082244950,-152.65,0.000335,2]
[313284834,1707082244960,-152.65,0.000335,2]
[313284835,1707082244969,-152.65,0.000335,2]
[313284836,1707082244977,-152.65,0.000335,2]
[313284837,1707082244986,-152.65,0.000335,2]
[313284838,1707082244995,-152.65,0.000335,2]
[313284839,1707082245003,-153.60381201,0.00033634,2]
[313284840,1707082245013,-152.4549424,0.00033772,7]
[313284841,1707082245022,-155.0,0.00034,4]
[313284842,1707082245031,-765.94522118,0.00034,4]
[313284843,1707082245040,-152.4549424,0.00034266,7]
[313284844,1707082245049,-154.605,0.00034455,7]
[313284845,1707082245058,-3162.35348726,0.00034609,7]
[313284846,1707082245067,-204.0,0.00034759,14]
[313284847,1707082245077,-152.4549424,0.00034792,7]
[313284848,1707082245199,-1417.58714292,0.000349,2]
[313284849,1707082245209,-152.4549424,0.00034933,7]
[313284850,1707082245218,-151.09684366,0.00034969,2]
[313284851,1707082245227,-226731.27880607,0.00034999,3]
[313284852,1707082245236,-50000.0,0.00035,5]
[313284853,1707082245245,-221.77404607,0.00035,4]
[313284854,1707082245255,-350.46670243,0.00035,4]
[313284855,1707082245264,-447.12778796,0.00035,4]
[313284856,1707082245274,-386.95695566,0.00035,4]
[313284857,1707082245283,-776.55764725,0.00035,14]
[313284858,1707082245292,-800.0,0.00035,3]
[313284859,1707082245301,-3880.59954121,0.00035,2]
[313284860,1707082245311,-801.57598095,0.0003501,7]
[313284861,1707082245320,-152.4549424,0.00035196,7]
[313284862,1707082245329,-2790.38,0.00035616,2]
[313284863,1707082245338,-582.19,0.00035638,2]
[313284864,1707082245347,-281.90874254,0.00035843,4]
[313284865,1707082245356,-1386.70067008,0.00035843,4]
[313284866,1707082245365,-1277.06022065,0.00035867,4]
[313284867,1707082245375,-492.7374076,0.00035927,4]
[313284868,1707082245383,-50000.0,0.00036,6]
[313284869,1707082245392,-291.00059076,0.00036035,4]
[313284870,1707082245402,-320.2509152,0.00036082,4]
[313284871,1707082245412,-204.0,0.00036087,16]
[313284872,1707082245422,-500.0,0.0003614,2]
[313284873,1707082245433,-323.99807634,0.0003645,4]
[313284874,1707082245443,-694.70915991,0.00036488,4]
[313284875,1707082245452,-3162.35348726,0.00036577,9]
[313284876,1707082245462,-152.4549424,0.00036653,7]
[313284877,1707082245471,-152.4549424,0.00036907,7]
[313284878,1707082245482,-50000.0,0.00037,7]
[313284879,1707082245491,-671.30355202,0.00037,7]
[313284880,1707082245501,-850.0,0.00037,3]
[313284881,1707082245510,-1000.0,0.00037,2]
[313284882,1707082245519,-257.9,0.00037,30]
[313284883,1707082245528,-502.11641,0.00037,2]
[313284884,1707082245537,-4000.0,0.00037,2]
[313284885,1707082245546,-152.65,0.000371,3]
[313284886,1707082245555,-152.65,0.000371,3]
[313284887,1707082245564,-152.65,0.000371,3]
[313284888,1707082245573,-152.65,0.000371,3]
[313284889,1707082245583,-152.65,0.000371,3]
[313284890,1707082245592,-152.65,0.000371,3]
[313284891,1707082245601,-152.65,0.000371,3]
[313284892,1707082245610,-152.65,0.000371,3]
[313284893,1707082245620,-152.65,0.000371,3]
[313284894,1707082245631,-152.65,0.000371,3]
[313284895,1707082245640,-152.65,0.000371,3]
[313284896,1707082245650,-152.65,0.000371,3]
[313284897,1707082245658,-152.65,0.000371,3]
[313284898,1707082245667,-152.65,0.000371,3]
[313284899,1707082245677,-152.65,0.000371,3]
[313284900,1707082245686,-152.65,0.000371,3]
[313284901,1707082245695,-152.65,0.000371,3]
[313284902,1707082245704,-155.0,0.00037108,7]
[313284903,1707082245713,-152.4549424,0.00037122,7]
[313284904,1707082245722,-515.44,0.00037137,30]
[313284905,1707082245732,-739.1573535,0.00037195,2]
[313284906,1707082245741,-6387.07292115,0.00037245,2]
[313284907,1707082245750,-536.04370569,0.00037295,2]
[313284908,1707082245760,-984.90884216,0.00037295,2]
[313284909,1707082245769,-263.01931316,0.00037295,2]
[313284910,1707082245778,-239.57874546,0.00037345,2]
[313284911,1707082245788,-154.98375468,0.00037364,7]
[313284912,1707082245798,-204.0,0.00037416,18]
[313284913,1707082245806,-453.56337423,0.000375,2]
[313284914,1707082245816,-1000.0,0.00037516,2]
[313284915,1707082245825,-151.09684366,0.00037565,2]
[313284916,1707082245834,-155.0,0.00037605,7]
[313284917,1707082245844,-257.42656984,0.00037616,4]
[313284918,1707082245853,-155.0,0.00037616,2]
[313284919,1707082245862,-173.63850867,0.00037802,2]
[313284920,1707082245871,-546300.81430177,0.000379,3]
[313284921,1707082246085,-1417.58714284,0.000349,2]
[313284922,1707082246095,-1417.58714284,0.000349,2]
[313284923,1707082246105,-9214.10610696,0.000379,3]
[313284924,1707082246116,-12878.51499844,0.000379,3]
[313284925,1707082246128,-20970.71200001,0.000379,3]
[313284926,1707082246142,-446.81880973,0.000379,3]
[313284927,1707082246153,-2980.88363126,0.000379,3]
[313284928,1707082246165,-859.75863843,0.000379,3]
[313284929,1707082246185,-624.1021534,0.000379,3]
[313284930,1707082246197,-1174.34256977,0.000379,3]
[313284931,1707082246210,-41922.67573123,0.000379,3]
[313284932,1707082246219,-582.19,0.00037902,2]
[313284933,1707082246229,-50000.0,0.00038,8]
[313284934,1707082246238,-3000.0,0.00038,21]
[313284935,1707082246248,-3000.0,0.0003801,21]
[313284936,1707082246257,-5445.117097,0.0003802,21]
[313284937,1707082246267,-801.57598095,0.00038157,8]
[313284938,1707082246277,-150.0,0.00038356,2]
[313284939,1707082246286,-3162.35348726,0.00038545,12]
[313284940,1707082246296,-287.36,0.000386,7]
[313284941,1707082246305,-204.0,0.00038744,21]
[313284942,1707082246315,-21428.89231841,0.000388,4]
[313284943,1707082246324,-500.0,0.00038804,2]
[313284944,1707082246334,-9231.17607509,0.0003888,2]
[313284945,1707082246344,-9231.176075,0.0003888,2]
[313284946,1707082246354,-4163.84807551,0.0003888,2]
[313284947,1707082246367,-5067.32799949,0.0003888,2]
[313284948,1707082246377,-9231.176075,0.0003888,2]
[313284949,1707082246387,-9231.176075,0.0003888,2]
[313284950,1707082246399,-9231.176075,0.0003888,2]
[313284951,1707082246409,-9231.176075,0.0003888,2]
[313284952,1707082246419,-4022.05534833,0.000389,15]
[313284953,1707082246428,-282.99585299,0.0003898,2]
[313284954,1707082246437,-50000.0,0.00039,9]
[313284955,1707082246447,-1433.61374358,0.00039,2]
[313284956,1707082246457,-979.97241271,0.00039,4]
[313284957,1707082246466,-226.7034093,0.00039,5]
[313284958,1707082246476,-164.49043128,0.00039,120]
[313284959,1707082246486,-1360.0,0.00039,8]
[313284960,1707082246497,-900.0,0.00039,3]
[313284961,1707082246506,-153.60381201,0.00039022,3]
[313284962,1707082246515,-200.0,0.0003926,2]
[313284963,1707082246525,-150.0,0.00039366,2]
[313284964,1707082246534,-1000.0,0.000397,2]
[313284965,1707082246544,-160.99975112,0.0003987,7]
[313284966,1707082246553,-9231.176075,0.00039905,2]
[313284967,1707082246562,-354.25084393,0.0003998,5]
[313284968,1707082246571,-417.82201802,0.00039999,31]
[313284969,1707082246580,-400.69660883,0.00039999,31]
[313284970,1707082246589,-319.44556406,0.00039999,31]
[313284971,1707082246599,-500.0,0.00039999,31]
[313284972,1707082246608,-502.8835423,0.00039999,31]
[313284973,1707082246617,-264.29268869,0.00039999,31]
[313284974,1707082246626,-582.45579224,0.00039999,31]
[313284975,1707082246635,-500.0,0.00039999,31]
[313284976,1707082246644,-203.45860186,0.00039999,31]
[313284977,1707082246655,-474.73673767,0.00039999,31]
[313284978,1707082246664,-500.0,0.00039999,31]
[313284979,1707082246673,-100000.0,0.0004,20]
[313284980,1707082246682,-1500.0,0.0004,4]
[313284981,1707082246691,-83704.56321334,0.0004,4]
[313284982,1707082246700,-2279.09360945,0.0004,4]
[313284983,1707082246709,-933.41474555,0.0004,30]
[313284984,1707082246718,-180.8638013,0.0004,2]
[313284985,1707082246728,-571.36387681,0.0004,4]
[313284986,1707082246737,-2910.39478675,0.0004,4]
[313284987,1707082246745,-508.56900924,0.0004,4]
[313284988,1707082246754,-54488.91732862,0.0004,4]
[313284989,1707082246763,-1088.67175974,0.0004,4]
[313284990,1707082246772,-155.0,0.0004,2]
[313284991,1707082246781,-4390.00732164,0.0004,4]
[313284992,1707082246791,-22117.68647422,0.0004,4]
[313284993,1707082246800,-4351.30989882,0.0004,4]
[313284994,1707082246810,-499.99891599,0.0004,120]
[313284995,1707082246820,-1000.0,0.0004,9]
[313284996,1707082246828,-255.0,0.0004,12]
[313284997,1707082246838,-255.0,0.0004,12]
[313284998,1707082246847,-255.0,0.0004,12]
[313284999,1707082246857,-255.0,0.0004,12]
[313285000,1707082246866,-255.0,0.0004,12]
[313285001,1707082246876,-255.0,0.0004,12]
[313285002,1707082246886,-255.0,0.0004,12]
[313285003,1707082246897,-5000.0,0.0004,30]
[313285004,1707082246907,-3200.0,0.0004,4]
[313285005,1707082246917,-204.0,0.00040073,23]
[313285006,1707082246926,-582.19,0.00040166,2]
[313285007,1707082246935,-151.09684366,0.00040354,2]
[313285008,1707082246945,-150.0,0.00040375,2]
[313285009,1707082246955,-5000.0,0.000405,25]
[313285010,1707082246964,-3162.35348726,0.00040514,14]
[313285011,1707082246973,-152.65,0.000406,4]
[313285012,1707082246982,-152.65,0.000406,4]
[313285013,1707082246992,-152.65,0.000406,4]
[313285014,1707082247002,-152.65,0.000406,4]
[313285015,1707082247012,-152.65,0.000406,4]
[313285016,1707082247023,-152.65,0.000406,4]
[313285017,1707082247032,-152.65,0.000406,4]
[313285018,1707082247043,-152.65,0.000406,4]
[313285019,1707082247053,-152.65,0.000406,4]
[313285020,1707082247062,-152.65,0.000406,4]
[313285021,1707082247071,-152.65,0.000406,4]
[313285022,1707082247080,-152.65,0.000406,4]
[313285023,1707082247093,-152.65,0.000406,4]
[313285024,1707082247103,-152.65,0.000406,4]
[313285025,1707082247113,-152.65,0.000406,4]
[313285026,1707082247122,-152.65,0.000406,4]
[313285027,1707082247133,-152.65,0.000406,4]
[313285028,1707082247143,-660.23737562,0.00040867,13]
[313285029,1707082247153,-152.0,0.00040977,3]
[313285030,1707082247162,-100000.0,0.00041,21]
[313285031,1707082247172,-1000.0,0.00041,10]
[313285032,1707082247181,-950.0,0.00041,3]
[313285033,1707082247191,-20000.0,0.00041,4]
[313285034,1707082247200,-194.77606192,0.00041095,3]
[313285035,1707082247209,-150.0,0.00041095,3]
[313285036,1707082247218,-151.0,0.00041096,14]
[313285037,1707082247227,-151.0,0.00041096,14]
[313285038,1707082247236,-151.0,0.00041096,14]
[313285039,1707082247246,-151.0,0.00041096,14]
[313285040,1707082247256,-151.0,0.00041096,14]
[313285041,1707082247266,-151.0,0.00041096,14]
[313285042,1707082247275,-151.0,0.00041096,14]
[313285043,1707082247283,-151.155,0.00041096,7]
[313285044,1707082247293,-151.155,0.00041096,7]
[313285045,1707082247302,-151.155,0.00041096,7]
[313285046,1707082247312,-151.155,0.00041096,7]
[313285047,1707082247321,-151.155,0.00041096,7]
[313285048,1707082247330,-151.155,0.00041096,7]
[313285049,1707082247339,-151.155,0.00041096,7]
[313285050,1707082247349,-151.155,0.00041096,7]
[313285051,1707082247358,-151.155,0.00041096,7]
[313285052,1707082247467,-151.155,0.00041096,7]
[313285053,1707082247477,-151.155,0.00041096,7]
[313285054,1707082247487,-151.155,0.00041096,7]
[313285055,1707082247497,-151.155,0.00041096,7]
[313285056,1707082247507,-151.155,0.00041096,7]
[313285057,1707082247516,-195.3626,0.00041096,14]
[313285058,1707082247527,-160.602992,0.00041096,14]
[313285059,1707082247536,-244.773772,0.00041096,14]
[313285060,1707082247545,-156.875747,0.00041096,14]
[313285061,1707082247554,-151.0,0.00041096,14]
[313285062,1707082247564,-151.0,0.00041096,14]
[313285063,1707082247573,-151.0,0.00041096,14]
[313285064,1707082247582,-232.776697,0.00041096,14]
[313285065,1707082247591,-156.2602,0.00041096,14]
[313285066,1707082247600,-154.845007,0.00041096,14]
[313285067,1707082247609,-305.313965,0.00041096,14]
[313285068,1707082247618,-305.313965,0.00041096,14]
[313285069,1707082247627,-305.313965,0.00041096,14]
[313285070,1707082247636,-305.313965,0.00041096,14]
[313285071,1707082247645,-305.313965,0.00041096,14]
[313285072,1707082247655,-305.313965,0.00041096,14]
[313285073,1707082247664,-305.313965,0.00041096,14]
[313285074,1707082247674,-305.313965,0.00041096,14]
[313285075,1707082247684,-305.313965,0.00041096,14]
[313285076,1707082247694,-305.313965,0.00041096,14]
[313285077,1707082247704,-305.313965,0.00041096,14]
[313285078,1707082247714,-305.313965,0.00041096,14]
[313285079,1707082247723,-305.313965,0.00041096,14]
[313285080,1707082247734,-305.313965,0.00041096,14]
[313285081,1707082247744,-305.313965,0.00041096,14]
[313285082,1707082247753,-305.313965,0.00041096,14]
[313285083,1707082247763,-267.834084,0.00041096,14]
[313285084,1707082247773,-151.0,0.00041096,14]
[313285085,1707082247783,-151.0,0.00041096,14]
[313285086,1707082247792,-151.0,0.00041096,14]
[313285087,1707082247801,-231.332038,0.00041096,14]
[313285088,1707082247810,-160.716407,0.00041096,14]
[313285089,1707082247819,-152.51,0.00041096,2]
[313285090,1707082247828,-156.535725,0.00041096,14]
[313285091,1707082247837,-151.0,0.00041096,14]
[313285092,1707082247846,-151.0,0.00041096,14]
[313285093,1707082247854,-185.163368,0.00041096,14]
[313285094,1707082247863,-161.110763,0.00041096,14]
[313285095,1707082247872,-155.461093,0.00041096,14]
[313285096,1707082247881,-22062.97,0.00041096,5]
[313285097,1707082247891,-151.0,0.00041096,7]
[313285098,1707082247900,-151.0,0.00041096,7]
[313285099,1707082247909,-151.0,0.00041096,7]
[313285100,1707082247918,-151.0,0.00041096,7]
[313285101,1707082247927,-151.0,0.00041096,7]
[313285102,1707082247936,-151.0,0.00041096,7]
[313285103,1707082247945,-151.0,0.00041096,7]
[313285104,1707082247954,-151.0,0.00041096,14]
[313285105,1707082247963,-155.320819,0.00041096,14]
[313285106,1707082247972,-172.084014,0.00041096,7]
[313285107,1707082247981,-172.084014,0.00041096,7]
[313285108,1707082247990,-172.084014,0.00041096,7]
[313285109,1707082248000,-172.084014,0.00041096,7]
[313285110,1707082248009,-172.084014,0.00041096,7]
[313285111,1707082248019,-172.084014,0.00041096,7]
[313285112,1707082248029,-172.084014,0.00041096,7]
[313285113,1707082248038,-172.084014,0.00041096,7]
[313285114,1707082248047,-172.084014,0.00041096,7]
[313285115,1707082248057,-172.084014,0.00041096,7]
[313285116,1707082248066,-172.084014,0.00041096,7]
[313285117,1707082248076,-172.084014,0.00041096,7]
[313285118,1707082248089,-172.084014,0.00041096,7]
[313285119,1707082248098,-172.084014,0.00041096,7]
[313285120,1707082248108,-155.498396,0.00041096,14]
[313285121,1707082248118,-151.0,0.00041096,14]
[313285122,1707082248127,-151.0,0.00041096,14]
[313285123,1707082248139,-151.0,0.00041096,14]
[313285124,1707082248150,-151.0,0.00041096,14]
[313285125,1707082248160,-151.0,0.00041096,14]
[313285126,1707082248170,-151.0,0.00041096,14]
[313285127,1707082248179,-151.0,0.00041096,14]
[313285128,1707082248188,-413.167868,0.00041096,14]
[313285129,1707082248197,-413.167868,0.00041096,14]
[313285130,1707082248206,-413.167868,0.00041096,14]
[313285131,1707082248216,-413.167868,0.00041096,14]
[313285132,1707082248225,-413.167868,0.00041096,14]
[313285133,1707082248235,-413.167868,0.00041096,14]
[313285134,1707082248244,-413.167868,0.00041096,14]
[313285135,1707082248254,-413.167868,0.00041096,14]
[313285136,1707082248263,-413.167868,0.00041096,14]
[313285137,1707082248272,-413.167868,0.00041096,14]
[313285138,1707082248282,-413.167868,0.00041096,14]
[313285139,1707082248291,-413.167868,0.00041096,14]
[313285140,1707082248300,-413.167868,0.00041096,14]
[313285141,1707082248309,-413.167868,0.00041096,14]
[313285142,1707082248318,-151.0,0.00041096,7]
[313285143,1707082248327,-151.0,0.00041096,7]
[313285144,1707082248336,-151.0,0.00041096,7]
[313285145,1707082248345,-151.0,0.00041096,7]
[313285146,1707082248354,-151.0,0.00041096,7]
[313285147,1707082248363,-151.0,0.00041096,7]
[313285148,1707082248373,-151.0,0.00041096,7]
[313285149,1707082248382,-151.0,0.00041096,14]
[313285150,1707082248391,-246.591524,0.00041096,14]
[313285151,1707082248400,-151.0,0.00041096,14]
[313285152,1707082248409,-151.0,0.00041096,14]
[313285153,1707082248419,-191.887868,0.00041096,14]
[313285154,1707082248428,-151.0,0.00041096,14]
[313285155,1707082248437,-163.746185,0.00041096,14]